[Event "Early-Titled-Tuesday-Blitz-February-06-2024"]
[Site "Chess.com"]
[Date "2024.02.06"]
[Round "11"]
[White "iwanyu"]
[Black "Zhigalko_Sergei"]
[Result "0-1"]
[WhiteElo "2813"]
[BlackElo "2952"]
[TimeControl "180+1"]
[EndTime "10:07:35 PST"]
[Termination "Zhigalko_Sergei won by checkmate"]

1. d4 {[%clk 0:03:00.9]} 1... Nf6 {[%clk 0:02:59]} 2. c4 {[%clk 0:03:00.7]} 2...
e6 {[%clk 0:02:59.2]} 3. Nf3 {[%clk 0:03:01.4]} 3... b6 {[%clk 0:02:59.4]} 4. g3
{[%clk 0:03:02.1]} 4... Ba6 {[%clk 0:02:59.6]} 5. Nbd2 {[%clk 0:03:01.9]} 5...
Bb4 {[%clk 0:02:59.6]} 6. Qc2 {[%clk 0:03:01.7]} 6... Bb7 {[%clk 0:03:00.1]} 7.
Bg2 {[%clk 0:03:01.6]} 7... Be4 {[%clk 0:03:00.5]} 8. Qa4 {[%clk 0:02:57.5]}
8... Bxd2+ {[%clk 0:03:00.3]} 9. Bxd2 {[%clk 0:02:57.8]} 9... O-O {[%clk
0:03:00.9]} 10. O-O {[%clk 0:02:56.7]} 10... d6 {[%clk 0:03:01.3]} 11. Bc3
{[%clk 0:02:55.2]} 11... Nbd7 {[%clk 0:03:01]} 12. Nd2 {[%clk 0:02:55.1]} 12...
Bxg2 {[%clk 0:03:00.8]} 13. Kxg2 {[%clk 0:02:56]} 13... c5 {[%clk 0:02:57.3]}
14. e4 {[%clk 0:02:52.5]} 14... cxd4 {[%clk 0:02:55.1]} 15. Bxd4 {[%clk
0:02:53.4]} 15... e5 {[%clk 0:02:50.1]} 16. Bc3 {[%clk 0:02:42.1]} 16... Nc5
{[%clk 0:02:44.7]} 17. Qc2 {[%clk 0:02:41.8]} 17... Qc8 {[%clk 0:02:37.6]} 18.
b4 {[%clk 0:02:26.8]} 18... Ne6 {[%clk 0:02:33.9]} 19. Qd3 {[%clk 0:02:15.4]}
19... Qc6 {[%clk 0:02:27.9]} 20. f4 {[%clk 0:02:12.1]} 20... Rac8 {[%clk
0:02:20.7]} 21. Rac1 {[%clk 0:02:04.3]} 21... Rfd8 {[%clk 0:01:45.8]} 22. h3
{[%clk 0:02:03.1]} 22... a5 {[%clk 0:01:34]} 23. a3 {[%clk 0:02:02]} 23... axb4
{[%clk 0:01:25.1]} 24. axb4 {[%clk 0:02:02.9]} 24... b5 {[%clk 0:01:25.6]} 25.
cxb5 {[%clk 0:02:00.7]} 25... Qb7 {[%clk 0:01:26]} 26. Qe2 {[%clk 0:01:46]}
26... h6 {[%clk 0:00:57.5]} 27. Kh2 {[%clk 0:01:28.4]} 27... Re8 {[%clk
0:00:32.4]} 28. fxe5 {[%clk 0:01:11.4]} 28... dxe5 {[%clk 0:00:29.2]} 29. Bxe5
{[%clk 0:01:07.3]} 29... Rxc1 {[%clk 0:00:17.9]} 30. Rxc1 {[%clk 0:01:06.6]}
30... Nd7 {[%clk 0:00:17]} 31. Bb2 {[%clk 0:01:06.2]} 31... Ng5 {[%clk
0:00:15.4]} 32. Rc6 {[%clk 0:01:01.3]} 32... Nb8 {[%clk 0:00:13.1]} 33. h4
{[%clk 0:00:37.2]} 33... Nxc6 {[%clk 0:00:13]} 34. bxc6 {[%clk 0:00:37.1]} 34...
Qxb4 {[%clk 0:00:13.7]} 35. hxg5 {[%clk 0:00:29.4]} 35... Qxb2 {[%clk
0:00:13.7]} 36. Kh3 {[%clk 0:00:26.9]} 36... hxg5 {[%clk 0:00:12.8]} 37. Qd3
{[%clk 0:00:22.7]} 37... Qe5 {[%clk 0:00:06.1]} 38. Qd5 {[%clk 0:00:17.6]} 38...
Qe6+ {[%clk 0:00:04.7]} 39. Kg2 {[%clk 0:00:16.8]} 39... Rc8 {[%clk 0:00:05.2]}
40. Nf3 {[%clk 0:00:15.2]} 40... Qxc6 {[%clk 0:00:04.3]} 41. Qxg5 {[%clk
0:00:13.8]} 41... Qxe4 {[%clk 0:00:04.3]} 42. Qh5 {[%clk 0:00:13.8]} 42... Re8
{[%clk 0:00:03.6]} 43. Kh2 {[%clk 0:00:10.9]} 43... g6 {[%clk 0:00:03.4]} 44.
Qb5 {[%clk 0:00:04]} 44... Qe2+ {[%clk 0:00:03.4]} 45. Qxe2 {[%clk 0:00:04.2]}
45... Rxe2+ {[%clk 0:00:04.3]} 46. Kh3 {[%clk 0:00:04.8]} 46... Ra2 {[%clk
0:00:05.1]} 47. Kg4 {[%clk 0:00:04.8]} 47... Kg7 {[%clk 0:00:05.9]} 48. Ne5
{[%clk 0:00:04.9]} 48... Ra4+ {[%clk 0:00:06.2]} 49. Kf3 {[%clk 0:00:04.9]}
49... f6 {[%clk 0:00:06.2]} 50. Nd7 {[%clk 0:00:04.6]} 50... Ra3+ {[%clk
0:00:06.2]} 51. Kf4 {[%clk 0:00:04.6]} 51... Ra4+ {[%clk 0:00:05.4]} 52. Kf3
{[%clk 0:00:04.7]} 52... g5 {[%clk 0:00:05.3]} 53. Nc5 {[%clk 0:00:04.7]} 53...
Ra3+ {[%clk 0:00:05.6]} 54. Kg4 {[%clk 0:00:02.4]} 54... Kg6 {[%clk 0:00:05.8]}
55. Kh3 {[%clk 0:00:02.7]} 55... f5 {[%clk 0:00:06]} 56. Kg2 {[%clk 0:00:03.1]}
56... Rc3 {[%clk 0:00:05.6]} 57. Ne6 {[%clk 0:00:02.9]} 57... Rc2+ {[%clk
0:00:05.7]} 58. Kf3 {[%clk 0:00:02.9]} 58... g4+ {[%clk 0:00:05.4]} 59. Kf4
{[%clk 0:00:02.4]} 59... Rf2+ {[%clk 0:00:05.3]} 60. Ke5 {[%clk 0:00:02.7]}
60... Rf3 {[%clk 0:00:05.4]} 61. Nd4 {[%clk 0:00:02.8]} 61... Re3+ {[%clk
0:00:04.8]} 62. Kf4 {[%clk 0:00:01.5]} 62... Re4# {[%clk 0:00:05]} 0-1

[Event "Early-Titled-Tuesday-Blitz-February-06-2024"]
[Site "Chess.com"]
[Date "2024.02.06"]
[Round "11"]
[White "Kapitan_Bayan"]
[Black "mertfelin"]
[Result "0-1"]
[WhiteElo "2369"]
[BlackElo "2287"]
[TimeControl "180+1"]
[EndTime "10:07:43 PST"]
[Termination "mertfelin won by checkmate"]

1. e4 {[%clk 0:03:00.1]} 1... e5 {[%clk 0:03:00.2]} 2. Nf3 {[%clk 0:03:00.4]}
2... Nc6 {[%clk 0:03:00.6]} 3. Bc4 {[%clk 0:03:01]} 3... Bc5 {[%clk 0:03:00.8]}
4. O-O {[%clk 0:03:01.5]} 4... Nf6 {[%clk 0:03:01.2]} 5. d3 {[%clk 0:03:02.1]}
5... O-O {[%clk 0:03:01.3]} 6. Nbd2 {[%clk 0:02:59.6]} 6... d6 {[%clk
0:02:58.3]} 7. c3 {[%clk 0:02:58]} 7... Bb6 {[%clk 0:02:57.9]} 8. b4 {[%clk
0:02:53.1]} 8... Ne7 {[%clk 0:02:56.7]} 9. h3 {[%clk 0:02:41.6]} 9... Ng6 {[%clk
0:02:54.3]} 10. Re1 {[%clk 0:02:36.4]} 10... c6 {[%clk 0:02:54.3]} 11. Bb3
{[%clk 0:02:34.3]} 11... Re8 {[%clk 0:02:48.8]} 12. Nc4 {[%clk 0:02:31.5]} 12...
Bc7 {[%clk 0:02:48.6]} 13. a4 {[%clk 0:02:22.1]} 13... d5 {[%clk 0:02:46.4]} 14.
exd5 {[%clk 0:02:18]} 14... cxd5 {[%clk 0:02:46.5]} 15. Ne3 {[%clk 0:02:14.3]}
15... Nf4 {[%clk 0:02:42.2]} 16. Nf1 {[%clk 0:01:51.6]} 16... h6 {[%clk
0:02:34.2]} 17. Ng3 {[%clk 0:01:34.8]} 17... Ng6 {[%clk 0:02:32.5]} 18. Ra2
{[%clk 0:01:25.2]} 18... Bd7 {[%clk 0:02:10.7]} 19. Rae2 {[%clk 0:00:58]} 19...
a6 {[%clk 0:02:07.8]} 20. Qc2 {[%clk 0:00:44.4]} 20... Rc8 {[%clk 0:02:04.5]}
21. Qa2 {[%clk 0:00:44.4]} 21... Bc6 {[%clk 0:02:00.4]} 22. Be3 {[%clk
0:00:42.9]} 22... Qd7 {[%clk 0:01:56.5]} 23. a5 {[%clk 0:00:41.9]} 23... Rcd8
{[%clk 0:01:48]} 24. Nh2 {[%clk 0:00:19.3]} 24... Re7 {[%clk 0:01:02.4]} 25.
Nhf1 {[%clk 0:00:18.3]} 25... Rde8 {[%clk 0:01:01.2]} 26. Nd2 {[%clk 0:00:17]}
26... d4 {[%clk 0:00:58.4]} 27. cxd4 {[%clk 0:00:15.3]} 27... exd4 {[%clk
0:00:58.8]} 28. Bg5 {[%clk 0:00:14.2]} 28... hxg5 {[%clk 0:00:58.5]} 29. Rxe7
{[%clk 0:00:05.7]} 29... Rxe7 {[%clk 0:00:57.5]} 30. Rxe7 {[%clk 0:00:05.6]}
30... Qxe7 {[%clk 0:00:55.5]} 31. Nf5 {[%clk 0:00:05.7]} 31... Qe1+ {[%clk
0:00:53.7]} 32. Nf1 {[%clk 0:00:04.3]} 32... Ne5 {[%clk 0:00:48.2]} 33. Qc2
{[%clk 0:00:03.8]} 33... Qc3 {[%clk 0:00:36.8]} 34. Ne7+ {[%clk 0:00:04]} 34...
Kf8 {[%clk 0:00:34.6]} 35. Qxc3 {[%clk 0:00:04]} 35... dxc3 {[%clk 0:00:34.4]}
36. Nxc6 {[%clk 0:00:04.9]} 36... Nxc6 {[%clk 0:00:34.2]} 37. Ne3 {[%clk
0:00:04.7]} 37... Nxb4 {[%clk 0:00:33.1]} 38. Kf1 {[%clk 0:00:03.7]} 38... Bxa5
{[%clk 0:00:32.2]} 39. Ke2 {[%clk 0:00:02.7]} 39... Bb6 {[%clk 0:00:29.3]} 40.
g4 {[%clk 0:00:01.7]} 40... Bxe3 {[%clk 0:00:28.9]} 41. f3 {[%clk 0:00:02.3]}
41... Bf4 {[%clk 0:00:25.4]} 42. d4 {[%clk 0:00:01.8]} 42... c2 {[%clk
0:00:25.2]} 43. Bxc2 {[%clk 0:00:01.4]} 43... Nxc2 {[%clk 0:00:25.5]} 44. d5
{[%clk 0:00:01.8]} 44... Nxd5 {[%clk 0:00:25.7]} 45. Kf2 {[%clk 0:00:01.5]}
45... Nd4 {[%clk 0:00:26]} 46. h4 {[%clk 0:00:02.1]} 46... Nxf3 {[%clk
0:00:25.9]} 47. hxg5 {[%clk 0:00:02.1]} 47... Nxg5 {[%clk 0:00:25.9]} 48. Kg2
{[%clk 0:00:02.2]} 48... Bh2 {[%clk 0:00:26.2]} 49. Kxh2 {[%clk 0:00:02]} 49...
Ne3 {[%clk 0:00:26.7]} 50. Kh1 {[%clk 0:00:02]} 50... Nxg4 {[%clk 0:00:26.5]}
51. Kg1 {[%clk 0:00:02.2]} 51... Ke7 {[%clk 0:00:26.3]} 52. Kg2 {[%clk
0:00:02.8]} 52... Kf6 {[%clk 0:00:26.5]} 53. Kh1 {[%clk 0:00:03.3]} 53... Kf5
{[%clk 0:00:26.9]} 54. Kg1 {[%clk 0:00:03.8]} 54... Kf4 {[%clk 0:00:27.4]} 55.
Kg2 {[%clk 0:00:04.3]} 55... Ne4 {[%clk 0:00:26.9]} 56. Kh1 {[%clk 0:00:04.8]}
56... Kf3 {[%clk 0:00:26.1]} 57. Kg1 {[%clk 0:00:05]} 57... Ne3 {[%clk
0:00:24.2]} 58. Kh1 {[%clk 0:00:04.9]} 58... g5 {[%clk 0:00:22.3]} 59. Kg1
{[%clk 0:00:05.1]} 59... g4 {[%clk 0:00:22.1]} 60. Kh1 {[%clk 0:00:06]} 60... b6
{[%clk 0:00:21.9]} 61. Kh2 {[%clk 0:00:06.1]} 61... b5 {[%clk 0:00:21.8]} 62.
Kg1 {[%clk 0:00:06.6]} 62... g3 {[%clk 0:00:22]} 63. Kh1 {[%clk 0:00:07.2]}
63... f6 {[%clk 0:00:22.7]} 64. Kg1 {[%clk 0:00:07.6]} 64... f5 {[%clk
0:00:23.6]} 65. Kh1 {[%clk 0:00:08]} 65... f4 {[%clk 0:00:24.5]} 66. Kg1 {[%clk
0:00:08.6]} 66... a5 {[%clk 0:00:25.3]} 67. Kh1 {[%clk 0:00:09.2]} 67... b4
{[%clk 0:00:26.2]} 68. Kg1 {[%clk 0:00:09.8]} 68... a4 {[%clk 0:00:27.1]} 69.
Kh1 {[%clk 0:00:10.5]} 69... b3 {[%clk 0:00:28]} 70. Kg1 {[%clk 0:00:11.2]}
70... a3 {[%clk 0:00:28.9]} 71. Kh1 {[%clk 0:00:11.9]} 71... b2 {[%clk
0:00:29.8]} 72. Kg1 {[%clk 0:00:12.6]} 72... a2 {[%clk 0:00:30.7]} 73. Kh1
{[%clk 0:00:13.2]} 73... a1=B {[%clk 0:00:30.4]} 74. Kg1 {[%clk 0:00:13.4]}
74... b1=R# {[%clk 0:00:30]} 0-1

[Event "Early-Titled-Tuesday-Blitz-February-06-2024"]
[Site "Chess.com"]
[Date "2024.02.06"]
[Round "11"]
[White "hmatyi07"]
[Black "Quattroporte300"]
[Result "0-1"]
[WhiteElo "2218"]
[BlackElo "2384"]
[TimeControl "180+1"]
[EndTime "10:07:47 PST"]
[Termination "Quattroporte300 won by checkmate"]

1. e4 {[%clk 0:03:00.9]} 1... c5 {[%clk 0:02:59]} 2. Nf3 {[%clk 0:02:56.2]} 2...
Nc6 {[%clk 0:02:59.4]} 3. d4 {[%clk 0:02:55.8]} 3... cxd4 {[%clk 0:03:00]} 4.
Nxd4 {[%clk 0:02:56.7]} 4... Nf6 {[%clk 0:02:59.7]} 5. Nc3 {[%clk 0:02:56.9]}
5... e5 {[%clk 0:03:00.1]} 6. Ndb5 {[%clk 0:02:57.4]} 6... d6 {[%clk 0:03:00.6]}
7. Bg5 {[%clk 0:02:55.1]} 7... a6 {[%clk 0:03:01.1]} 8. Na3 {[%clk 0:02:54.9]}
8... b5 {[%clk 0:03:01.3]} 9. Bxf6 {[%clk 0:02:55]} 9... gxf6 {[%clk 0:03:01]}
10. Nd5 {[%clk 0:02:55.7]} 10... f5 {[%clk 0:02:56.1]} 11. g3 {[%clk 0:02:56]}
11... fxe4 {[%clk 0:02:56.3]} 12. Bg2 {[%clk 0:02:55.2]} 12... Bg7 {[%clk
0:02:54.7]} 13. Bxe4 {[%clk 0:02:51]} 13... O-O {[%clk 0:02:51.6]} 14. O-O
{[%clk 0:02:34.4]} 14... f5 {[%clk 0:02:48.4]} 15. Bg2 {[%clk 0:02:31]} 15...
Be6 {[%clk 0:02:45.6]} 16. c3 {[%clk 0:02:28.7]} 16... Rc8 {[%clk 0:02:36.5]}
17. Nc2 {[%clk 0:02:27.7]} 17... Qe8 {[%clk 0:02:31.1]} 18. Ncb4 {[%clk
0:02:22.7]} 18... Qf7 {[%clk 0:02:16.2]} 19. Nxa6 {[%clk 0:02:00.4]} 19... Rfd8
{[%clk 0:01:57]} 20. Nab4 {[%clk 0:01:39.9]} 20... Nxb4 {[%clk 0:01:52.9]} 21.
Nxb4 {[%clk 0:01:27.3]} 21... d5 {[%clk 0:01:52.6]} 22. Qe2 {[%clk 0:01:23.7]}
22... d4 {[%clk 0:01:31.5]} 23. Rfc1 {[%clk 0:01:15.6]} 23... Bc4 {[%clk
0:01:20.6]} 24. Qe1 {[%clk 0:00:52.3]} 24... d3 {[%clk 0:01:18.7]} 25. Qd2
{[%clk 0:00:48.8]} 25... e4 {[%clk 0:01:17.6]} 26. Re1 {[%clk 0:00:47.8]} 26...
Rd6 {[%clk 0:01:11.9]} 27. Qf4 {[%clk 0:00:33.1]} 27... Rcd8 {[%clk 0:00:59]}
28. Bh3 {[%clk 0:00:29.3]} 28... Rf6 {[%clk 0:00:43.5]} 29. b3 {[%clk
0:00:23.2]} 29... Be6 {[%clk 0:00:38.8]} 30. Nc6 {[%clk 0:00:22]} 30... Rc8
{[%clk 0:00:26.4]} 31. Nd4 {[%clk 0:00:21.2]} 31... Rxc3 {[%clk 0:00:23.6]} 32.
Qb8+ {[%clk 0:00:19.5]} 32... Rc8 {[%clk 0:00:22.3]} 33. Qxb5 {[%clk 0:00:19.2]}
33... Rd8 {[%clk 0:00:15.3]} 34. Nc6 {[%clk 0:00:16.4]} 34... Rd5 {[%clk
0:00:09.2]} 35. Qb8+ {[%clk 0:00:14.7]} 35... Bf8 {[%clk 0:00:09.9]} 36. Rac1
{[%clk 0:00:10.2]} 36... Kg7 {[%clk 0:00:08.1]} 37. Qf4 {[%clk 0:00:10.5]} 37...
h6 {[%clk 0:00:07.4]} 38. Ne5 {[%clk 0:00:11]} 38... Qb7 {[%clk 0:00:03.1]} 39.
Bg2 {[%clk 0:00:10.6]} 39... d2 {[%clk 0:00:03.5]} 40. Red1 {[%clk 0:00:09.5]}
40... dxc1=Q {[%clk 0:00:04]} 41. Rxc1 {[%clk 0:00:10.4]} 41... Ba3 {[%clk
0:00:03.7]} 42. Re1 {[%clk 0:00:08]} 42... Qc7 {[%clk 0:00:04.2]} 43. h4 {[%clk
0:00:06.8]} 43... Qxe5 {[%clk 0:00:04.3]} 44. Qc1 {[%clk 0:00:06.5]} 44... Bf8
{[%clk 0:00:04.5]} 45. Qe3 {[%clk 0:00:05.4]} 45... Rf7 {[%clk 0:00:04.9]} 46.
h5 {[%clk 0:00:05.8]} 46... Qd4 {[%clk 0:00:05.4]} 47. Qf4 {[%clk 0:00:05.5]}
47... Rfd7 {[%clk 0:00:05.4]} 48. g4 {[%clk 0:00:03.2]} 48... Qe5 {[%clk
0:00:05.9]} 49. Qe3 {[%clk 0:00:03.1]} 49... Rd3 {[%clk 0:00:06.1]} 50. Qe2
{[%clk 0:00:03.1]} 50... Rd2 {[%clk 0:00:06.1]} 51. Qe3 {[%clk 0:00:03.4]} 51...
f4 {[%clk 0:00:06.1]} 52. Qb6 {[%clk 0:00:01.4]} 52... Rd1 {[%clk 0:00:05.3]}
53. Rxd1 {[%clk 0:00:01]} 53... Rxd1+ {[%clk 0:00:06.2]} 54. Kh2 {[%clk
0:00:01.9]} 54... f3+ {[%clk 0:00:06.4]} 55. Kh3 {[%clk 0:00:02.8]} 55... fxg2
{[%clk 0:00:06.1]} 56. Qa7+ {[%clk 0:00:03.3]} 56... Rd7 {[%clk 0:00:06.2]} 57.
Qe3 {[%clk 0:00:02.7]} 57... g1=N+ {[%clk 0:00:05.9]} 58. Kh4 {[%clk 0:00:03.6]}
58... Nf3+ {[%clk 0:00:06.2]} 59. Kh3 {[%clk 0:00:03.3]} 59... Qg5 {[%clk
0:00:06.4]} 60. Qxg5+ {[%clk 0:00:03]} 60... Nxg5+ {[%clk 0:00:05.6]} 61. Kg3
{[%clk 0:00:03.9]} 61... Rd2 {[%clk 0:00:05.9]} 62. b4 {[%clk 0:00:04.8]} 62...
Rd3+ {[%clk 0:00:06.3]} 63. Kh4 {[%clk 0:00:04.5]} 63... Nf3+ {[%clk 0:00:05.9]}
64. Kg3 {[%clk 0:00:04.9]} 64... Nd4+ {[%clk 0:00:06.7]} 65. Kh4 {[%clk
0:00:05.8]} 65... Be7+ {[%clk 0:00:06.3]} 66. g5 {[%clk 0:00:06.1]} 66... Bxg5#
{[%clk 0:00:07]} 0-1

[Event "Early-Titled-Tuesday-Blitz-February-06-2024"]
[Site "Chess.com"]
[Date "2024.02.06"]
[Round "11"]
[White "CADMartin"]
[Black "Elnaz_Kaliakhmet"]
[Result "0-1"]
[WhiteElo "2443"]
[BlackElo "2298"]
[TimeControl "180+1"]
[EndTime "10:07:50 PST"]
[Termination "Elnaz_Kaliakhmet won by checkmate"]

1. e4 {[%clk 0:03:00.9]} 1... c5 {[%clk 0:02:56.4]} 2. Nf3 {[%clk 0:03:00.9]}
2... e6 {[%clk 0:02:56.3]} 3. d4 {[%clk 0:03:01.1]} 3... cxd4 {[%clk 0:02:56.8]}
4. Nxd4 {[%clk 0:03:02]} 4... a6 {[%clk 0:02:56.8]} 5. c4 {[%clk 0:03:01.4]}
5... Nf6 {[%clk 0:02:56.1]} 6. Nc3 {[%clk 0:03:00.8]} 6... Bb4 {[%clk
0:02:55.9]} 7. Bd3 {[%clk 0:02:57.4]} 7... Nc6 {[%clk 0:02:54.4]} 8. Nc2 {[%clk
0:02:56.7]} 8... Bxc3+ {[%clk 0:02:49.9]} 9. bxc3 {[%clk 0:02:57.6]} 9... O-O
{[%clk 0:02:50]} 10. O-O {[%clk 0:02:56.8]} 10... b6 {[%clk 0:02:44.7]} 11. f4
{[%clk 0:02:52]} 11... d6 {[%clk 0:02:44.6]} 12. Be3 {[%clk 0:02:50.3]} 12...
Bb7 {[%clk 0:02:44.2]} 13. Rb1 {[%clk 0:02:47.4]} 13... Nd7 {[%clk 0:02:43.9]}
14. Re1 {[%clk 0:02:42.2]} 14... Nc5 {[%clk 0:02:41.4]} 15. Nd4 {[%clk
0:02:38.1]} 15... Rc8 {[%clk 0:02:36.1]} 16. Bc2 {[%clk 0:02:35.6]} 16... Na5
{[%clk 0:02:34.3]} 17. Bf2 {[%clk 0:02:23.2]} 17... Nxc4 {[%clk 0:02:30.2]} 18.
Rb4 {[%clk 0:02:15.8]} 18... Na3 {[%clk 0:02:22.3]} 19. Bd3 {[%clk 0:02:00.2]}
19... a5 {[%clk 0:02:08.9]} 20. Rb2 {[%clk 0:01:44.7]} 20... Nxd3 {[%clk
0:02:08.7]} 21. Qxd3 {[%clk 0:01:45.6]} 21... Nc4 {[%clk 0:02:08.8]} 22. Rbb1
{[%clk 0:01:44.8]} 22... Ba6 {[%clk 0:02:00.7]} 23. Qh3 {[%clk 0:01:33.6]} 23...
Qf6 {[%clk 0:01:57.7]} 24. Qg3 {[%clk 0:01:12.3]} 24... Qg6 {[%clk 0:01:47.8]}
25. f5 {[%clk 0:01:08.8]} 25... Qxg3 {[%clk 0:01:46.4]} 26. Bxg3 {[%clk
0:01:09.7]} 26... e5 {[%clk 0:01:43.6]} 27. Nc2 {[%clk 0:01:08.4]} 27... Rc6
{[%clk 0:01:36.3]} 28. Bf2 {[%clk 0:01:03.3]} 28... f6 {[%clk 0:01:33.6]} 29.
Red1 {[%clk 0:01:00.4]} 29... Rfc8 {[%clk 0:01:32.7]} 30. a4 {[%clk 0:00:38.4]}
30... Kf7 {[%clk 0:01:23.2]} 31. g4 {[%clk 0:00:34.2]} 31... g6 {[%clk 0:01:22]}
32. h3 {[%clk 0:00:33.7]} 32... gxf5 {[%clk 0:01:20.6]} 33. gxf5 {[%clk
0:00:34.6]} 33... Rg8+ {[%clk 0:01:18.7]} 34. Kh2 {[%clk 0:00:35.1]} 34... Ke7
{[%clk 0:01:18.3]} 35. Rg1 {[%clk 0:00:20.2]} 35... Rxg1 {[%clk 0:01:16.7]} 36.
Rxg1 {[%clk 0:00:21.1]} 36... Kf7 {[%clk 0:01:17.1]} 37. Rb1 {[%clk 0:00:19.6]}
37... Nd2 {[%clk 0:01:12.2]} 38. Rxb6 {[%clk 0:00:18.4]} 38... Rxc3 {[%clk
0:01:02.3]} 39. Ne3 {[%clk 0:00:11.5]} 39... Nxe4 {[%clk 0:00:46.9]} 40. Bh4
{[%clk 0:00:10.4]} 40... Rxe3 {[%clk 0:00:42.4]} 41. Rxa6 {[%clk 0:00:10.8]}
41... Re2+ {[%clk 0:00:41.5]} 42. Kg1 {[%clk 0:00:11.1]} 42... d5 {[%clk
0:00:41.8]} 43. Ra7+ {[%clk 0:00:09.8]} 43... Ke8 {[%clk 0:00:41.7]} 44. Rxa5
{[%clk 0:00:09.9]} 44... d4 {[%clk 0:00:41]} 45. Rd5 {[%clk 0:00:08.3]} 45...
Ra2 {[%clk 0:00:40.3]} 46. a5 {[%clk 0:00:08.3]} 46... Nc3 {[%clk 0:00:35.5]}
47. Rd6 {[%clk 0:00:06.9]} 47... Ne2+ {[%clk 0:00:35.4]} 48. Kf1 {[%clk
0:00:07.2]} 48... Nf4 {[%clk 0:00:30.7]} 49. Bxf6 {[%clk 0:00:06.9]} 49... Rxa5
{[%clk 0:00:30.5]} 50. Bxe5 {[%clk 0:00:04.3]} 50... Rxe5 {[%clk 0:00:29.8]} 51.
Rxd4 {[%clk 0:00:05]} 51... Rxf5 {[%clk 0:00:27.4]} 52. Re4+ {[%clk 0:00:05.7]}
52... Kf7 {[%clk 0:00:27.2]} 53. Kg1 {[%clk 0:00:06.4]} 53... Ng6 {[%clk
0:00:27.2]} 54. Ra4 {[%clk 0:00:06]} 54... Rf4 {[%clk 0:00:27.2]} 55. Ra5 {[%clk
0:00:05.5]} 55... Kf6 {[%clk 0:00:26.2]} 56. Kg2 {[%clk 0:00:06.1]} 56... Rf5
{[%clk 0:00:25.7]} 57. Ra6+ {[%clk 0:00:06.4]} 57... Kg5 {[%clk 0:00:25.8]} 58.
Ra7 {[%clk 0:00:06.8]} 58... h5 {[%clk 0:00:26.1]} 59. Ra4 {[%clk 0:00:07.3]}
59... Nf4+ {[%clk 0:00:23.9]} 60. Kg3 {[%clk 0:00:07.7]} 60... h4+ {[%clk
0:00:23.3]} 61. Kh2 {[%clk 0:00:07]} 61... Rc5 {[%clk 0:00:22.3]} 62. Kg1 {[%clk
0:00:05.9]} 62... Nxh3+ {[%clk 0:00:21.1]} 63. Kg2 {[%clk 0:00:05.9]} 63... Nf4+
{[%clk 0:00:21.7]} 64. Kh2 {[%clk 0:00:06.5]} 64... Rc2+ {[%clk 0:00:21]} 65.
Kg1 {[%clk 0:00:07]} 65... Kg4 {[%clk 0:00:21.6]} 66. Ra8 {[%clk 0:00:06.9]}
66... Nh3+ {[%clk 0:00:19.6]} 67. Kh1 {[%clk 0:00:06.6]} 67... Ng5 {[%clk
0:00:17.6]} 68. Ra4+ {[%clk 0:00:06.4]} 68... Kg3 {[%clk 0:00:16.6]} 69. Ra1
{[%clk 0:00:04.9]} 69... h3 {[%clk 0:00:14.7]} 70. Rg1+ {[%clk 0:00:05.1]} 70...
Rg2 {[%clk 0:00:13.2]} 71. Rc1 {[%clk 0:00:04]} 71... Rh2+ {[%clk 0:00:13.3]}
72. Kg1 {[%clk 0:00:04.1]} 72... Nf3+ {[%clk 0:00:13.9]} 73. Kf1 {[%clk
0:00:05]} 73... Rf2# {[%clk 0:00:14.3]} 0-1